bitfinex-derivatives/quotes_SOLF0:USTF0_20241211
["timestamp","ask_amount","ask_price","bid_price","bid_amount"]
[1733932550058,10.0710411,229.0,228.91,5.45829269]
[1733932550371,2.1816,229.01,228.97,2.182]
[1733932550659,2.62,229.04,228.94,10.0710411]
[1733932550865,2.62,229.04,228.95,5.45751034]
[1733932551056,2.62,229.04,228.94,10.0710411]
[1733932551257,2.62,229.04,228.96,5.45713074]
[1733932551460,2.1815,229.02,228.97,7.63903074]
[1733932551763,2.1815,229.02,228.94,10.0710411]
[1733932551764,2.1815,229.02,228.98,5.45713074]
[1733932552066,2.1815,229.02,228.94,10.0710411]
[1733932552260,2.1819,228.99,228.95,5.45696095]
[1733932552462,12.6910411,229.04,228.95,5.45696095]
[1733932552658,12.6910411,229.04,228.96,5.45696095]
[1733932552864,12.6910411,229.04,228.91,10.0710411]
[1733932553058,10.0710411,229.01,228.92,5.45750557]
[1733932553261,10.0710411,229.01,228.93,5.45750557]
[1733932553457,2.62,229.0,228.94,5.45750557]
[1733932553663,2.62,229.0,228.91,2.1825]
[1733932553962,2.62,229.0,228.92,5.45806671]
[1733932554164,2.1822,228.96,228.93,5.45806671]
[1733932554357,2.62,229.0,228.88,11.3988411]
[1733932554557,2.62,229.0,228.92,2.1825]
[1733932554759,2.1819,228.98,228.93,5.45816136]
[1733932554964,2.62,229.0,228.92,2.1825]
[1733932555165,2.62,228.99,228.93,5.45800592]
[1733932555367,2.182,228.98,228.93,2.1823]
[1733932555664,10.0710411,229.04,228.94,5.45793693]
[1733932555964,2.62,229.03,228.91,10.0710411]
[1733932556168,2.62,229.03,228.95,5.45763863]
[1733932556363,2.62,229.03,228.96,5.4574572]
[1733932556558,2.62,229.03,228.95,2.1821]
[1733932556759,2.1818,228.99,228.96,5.45747525]
[1733932556969,2.1818,228.99,228.95,2.1821]
[1733932557166,2.62,229.03,228.94,2.1824]
[1733932557362,2.1821,228.99,228.95,5.45762001]
[1733932557564,2.1821,228.99,228.91,10.0710411]
[1733932557867,10.0710411,229.01,228.92,5.45777692]
[1733932558062,10.0710411,229.01,228.93,5.45777692]
[1733932558270,10.0710411,229.01,228.91,2.1827]
[1733932558471,10.0710411,229.01,228.92,5.45811563]
[1733932558771,10.0710411,229.01,228.93,5.45815303]
[1733932558975,10.0710411,228.98,228.85,10.0710411]
[1733932559162,10.0710411,228.95,228.86,5.45866291]
[1733932559369,2.62,228.94,228.87,5.45866291]
[1733932559671,2.62,228.94,228.88,5.45866291]
[1733932559866,2.1829,228.91,228.89,5.45866291]
[1733932560072,2.1829,228.91,228.9,5.45866291]
[1733932560369,2.1829,228.91,228.87,2.1832]
[1733932560565,2.1829,228.91,228.88,5.45932599]
[1733932560770,2.1829,228.91,228.89,5.45932599]
[1733932560968,2.1829,228.91,228.87,2.1832]
[1733932561164,2.1829,228.91,228.88,5.45951764]
[1733932561366,2.1829,228.91,228.89,5.45951764]
[1733932561563,2.1829,228.91,228.86,2.1833]
[1733932561769,2.1829,228.91,228.87,5.45965213]
[1733932562072,10.0710411,228.92,228.88,5.45965213]
[1733932562275,10.0710411,228.92,228.81,1.4578]
[1733932562676,10.0710411,228.92,228.83,2.1835]
[1733932563174,10.0710411,228.92,228.84,5.45992693]
[1733932563472,10.0710411,228.92,228.85,5.45992693]
[1733932563673,10.0710411,228.92,228.83,2.1835]
[1733932563870,10.0710411,228.89,228.62,15.24730713]
[1733932564069,2.64,228.88,228.75,12.8230411]
[1733932564674,2.1835,228.84,228.79,2.1839]
[1733932565874,2.1837,228.82,228.77,2.1841]
[1733932566176,4.8237,228.82,228.77,2.1841]
[1733932566475,2.1838,228.8,228.75,2.1842]
[1733932567074,2.1838,228.8,228.73,5.17737439]
[1733932567075,2.1838,228.8,228.76,2.1842]
[1733932567277,2.64,228.82,228.7,1.3752]
[1733932567469,10.0710411,228.8,228.7,1.3752]
[1733932567673,10.0710411,228.8,228.71,2.1846]
[1733932567877,2.1842,228.76,228.68,1.4315]
[1733932568075,2.64,228.76,228.68,1.4315]
[1733932568275,2.64,228.76,228.69,2.1849]
[1733932568568,2.64,228.76,228.63,10.0710411]
[1733932568968,10.0710411,228.74,228.66,2.1851]
[1733932569368,10.0710411,228.74,228.65,2.1853]
[1733932569575,2.1848,228.7,228.62,1.3458]
[1733932569880,2.64,228.69,228.62,1.3458]
[1733932570378,2.64,228.69,228.65,2.1853]
[1733932571472,2.1851,228.67,228.58,10.0710411]
[1733932572181,2.64,228.69,228.58,10.0710411]
[1733932572981,2.64,228.69,228.55,10.0710411]
[1733932573375,10.0710411,228.68,228.55,10.0710411]
[1733932573570,2.1854,228.64,228.55,10.0710411]
[1733932573877,2.64,228.63,228.55,10.0710411]
[1733932574078,2.64,228.63,228.59,2.1858]
[1733932576376,2.64,228.63,228.55,10.0710411]
[1733932577682,2.1854,228.64,228.58,2.1859]
[1733932577883,2.64,228.62,228.58,2.1859]
[1733932578980,2.64,228.62,228.61,2.1857]
[1733932579585,2.62,228.63,228.61,2.1857]
[1733932579787,1.3387,228.7,228.58,10.0710411]
[1733932579988,2.62,228.69,228.55,2.62]
[1733932580189,10.0710411,228.68,228.54,5.27777309]
[1733932580586,10.0710411,228.68,228.55,10.0710411]
[1733932580891,2.62,228.69,228.58,10.0710411]
[1733932581192,2.62,228.69,228.64,2.1854]
[1733932581585,2.62,228.68,228.58,10.0710411]
[1733932581788,2.62,228.68,228.65,2.1852]
[1733932582296,2.62,228.68,228.67,2.1851]
[1733932582590,10.0710411,228.71,228.58,10.0710411]
[1733932582893,2.62,228.71,228.69,2.1848]
[1733932583291,2.62,228.71,228.57,2.62]
[1733932583292,2.62,228.72,228.64,10.0710411]
[1733932583496,2.62,228.73,228.64,10.0710411]
[1733932583994,10.0710411,228.77,228.72,2.1846]
[1733932584197,10.0710411,228.77,228.64,10.0710411]
[1733932584198,2.62,228.76,228.64,10.0710411]
[1733932584389,2.62,228.76,228.67,10.0710411]
[1733932585489,2.62,228.76,228.64,10.0710411]
[1733932586288,2.62,228.76,228.63,2.62]
[1733932586289,10.0710411,228.74,228.63,2.62]
[1733932586489,10.0710411,228.74,228.62,4.1969]
[1733932588289,2.1846,228.72,228.62,4.1969]
[1733932588888,10.0710411,228.74,228.62,4.1969]
[1733932589089,2.1845,228.73,228.62,4.1969]
[1733932589291,2.1845,228.73,228.68,2.1849]
[1733932589797,10.0710411,228.74,228.62,4.1969]
[1733932589993,10.0710411,228.74,228.67,2.185]
[1733932590188,2.1846,228.72,228.62,4.1969]
[1733932590790,2.62,228.76,228.64,10.0710411]
[1733932591894,2.62,228.77,228.64,12.6910411]
[1733932592700,2.62,228.77,228.73,2.1844]
[1733932592996,44.52779377,228.79,228.72,2.1846]
[1733932592997,2.62,228.76,228.72,2.1846]
[1733932593194,2.62,228.76,228.64,12.6910411]
[1733932593592,4.8043,228.76,228.71,2.1846]
[1733932594199,2.62,228.75,228.71,2.1846]
[1733932595000,2.62,228.75,228.64,12.6910411]
[1733932595197,2.62,228.75,228.72,2.1846]
[1733932595697,4.8043,228.75,228.7,2.1847]
[1733932595893,2.62,228.75,228.7,2.1847]
[1733932596601,2.1844,228.74,228.7,2.1847]
[1733932597004,2.62,228.75,228.68,2.1849]
[1733932597203,2.1846,228.73,228.68,2.1849]
[1733932597700,2.62,228.75,228.62,4.1969]
[1733932597903,2.62,228.75,228.64,10.0710411]
[1733932598294,2.62,228.75,228.71,2.1846]
[1733932599404,2.62,228.75,228.64,10.0710411]
[1733932600004,2.62,228.75,228.72,2.1845]
[1733932600399,2.62,228.75,228.64,10.0710411]
[1733932601002,2.62,228.75,228.62,16.8879411]
[1733932601804,2.62,228.75,228.65,10.0710411]
[1733932602809,2.62,228.75,228.73,2.1845]
[1733932603001,2.62,228.75,228.62,4.1969]
[1733932603002,10.0710411,228.74,228.62,4.1969]
[1733932603203,10.0710411,228.71,228.62,4.1969]
[1733932603606,10.0710411,228.71,228.62,2.7739]
[1733932603805,2.1851,228.68,228.64,2.1854]
[1733932604106,4.8051,228.68,228.56,10.0710411]
[1733932604300,4.8051,228.68,228.57,1.3901]
[1733932604504,4.8051,228.68,228.64,2.1853]
[1733932604802,2.62,228.68,228.57,1.3901]
[1733932605007,2.62,228.68,228.64,2.1853]
[1733932605210,2.62,228.68,228.57,1.3901]
[1733932605708,10.0710411,228.67,228.57,1.3901]
[1733932607211,2.62,228.66,228.57,1.3901]
[1733932607610,2.62,228.66,228.64,2.1853]
[1733932610805,2.62,228.69,228.6,10.0710411]
[1733932611210,2.62,228.69,228.65,2.1852]
[1733932612709,4.805,228.69,228.65,2.1852]
[1733932613510,2.62,228.69,228.57,11.4611411]
[1733932613706,2.62,228.71,228.6,10.0710411]
[1733932614011,2.62,228.72,228.6,10.0710411]
[1733932614410,4.8046,228.72,228.68,2.1849]
[1733932614608,2.62,228.72,228.6,10.0710411]
[1733932616015,4.8046,228.72,228.68,2.1849]
[1733932619212,2.62,228.72,228.6,10.0710411]
[1733932619415,2.1848,228.71,228.6,10.0710411]
[1733932619616,2.62,228.72,228.59,2.62]
[1733932620219,2.1849,228.7,228.66,2.1851]
[1733932621223,10.0710411,228.7,228.63,2.1854]
[1733932622214,2.185,228.68,228.63,2.1854]
[1733932622618,2.1851,228.67,228.63,2.1854]
[1733932622824,2.62,228.66,228.63,2.1854]
[1733932623225,6.4633306,228.65,228.64,2.1854]
[1733932623624,6.4633306,228.65,228.58,6.4633306]
[1733932623929,6.4633306,228.65,228.59,5.23468165]
[1733932625121,6.4633306,228.65,228.63,2.1854]
[1733932625327,2.62,228.66,228.59,5.23468165]
[1733932625522,10.09892983,228.72,228.59,15.33361148]
[1733932625727,2.62,228.72,228.62,10.09892983]
[1733932626025,4.8047,228.72,228.65,2.1853]
[1733932626222,4.8047,228.72,228.62,10.09892983]
[1733932626525,4.8047,228.72,228.63,5.46469713]
[1733932626724,4.8047,228.72,228.64,5.46469713]
[1733932626916,4.8047,228.72,228.65,5.46469713]
[1733932627120,4.8047,228.72,228.68,2.1849]
[1733932627325,2.62,228.72,228.69,5.46469713]
[1733932627525,44.52779377,228.79,228.7,5.46469713]
[1733932627822,10.09892983,228.77,228.71,7.64939713]
[1733932628127,12.21721856,228.76,228.71,2.1847]
[1733932628330,2.1845,228.73,228.69,2.1849]
[1733932628623,10.09892983,228.77,228.62,10.09892983]
[1733932628830,10.09892983,228.74,228.63,5.4650149]
[1733932629021,33.12289828,228.78,228.64,5.4650149]
[1733932629022,10.09892983,228.71,228.64,5.4650149]
[1733932629220,2.62,228.7,228.65,5.4650149]
[1733932629419,2.62,228.7,228.66,5.4650149]
[1733932629619,2.62,228.7,228.67,5.46524469]
[1733932629823,2.62,228.7,228.63,2.1854]
[1733932629824,2.1851,228.67,228.63,2.1854]
[1733932630036,2.1851,228.67,228.64,5.46523927]
[1733932630326,2.1852,228.66,228.65,5.46523927]
[1733932631024,14.90493589,228.67,228.46,5.22868179]
[1733932631325,10.09892983,228.6,228.47,2.1869]
[1733932631528,10.09892983,228.57,228.48,2.18837535]
[1733932631830,2.62,228.56,228.48,2.18837535]
[1733932633122,210.72416198,228.66,228.48,2.18837535]
[1733932633123,30.51869018,228.66,228.48,2.18837535]
[1733932633327,10.09892983,228.62,228.49,1.4114]
[1733932633529,10.09892983,228.62,228.49,4.1397]
[1733932633926,2.1858,228.6,228.52,2.1864]
[1733932634134,2.62,228.59,228.49,4.1397]
[1733932634726,4.8059,228.59,228.49,4.1397]
[1733932635235,4.8059,228.59,228.54,2.1863]
[1733932635435,4.8059,228.59,228.49,4.1397]
[1733932635631,12.71892983,228.59,228.49,4.1397]
[1733932637136,2.1861,228.57,228.51,2.1866]
[1733932637341,2.1861,228.57,228.49,4.1397]
[1733932637932,2.62,228.56,228.49,4.1397]
[1733932638132,5.30533577,228.62,228.49,4.1397]
[1733932638133,2.62,228.58,228.49,4.1397]
[1733932638734,2.62,228.58,228.49,14.23862983]
[1733932639035,10.09892983,228.65,228.57,2.186]
[1733932639036,2.62,228.61,228.57,2.186]
[1733932639638,4.8057,228.61,228.57,2.186]
[1733932640333,2.62,228.61,228.57,2.186]
[1733932640728,2.62,228.61,228.49,14.23862983]
[1733932640933,2.62,228.61,228.58,2.1859]
[1733932642538,2.62,228.61,228.59,2.1858]
[1733932644339,2.1854,228.64,228.59,2.1858]
[1733932644541,2.62,228.63,228.59,2.1858]
[1733932645337,4.8055,228.63,228.59,2.1858]
[1733932645836,4.18467302,228.62,228.59,2.1858]
[1733932646033,4.18467302,228.61,228.59,2.1858]
[1733932646337,4.18467302,228.6,228.57,2.186]
[1733932646541,4.18467302,228.59,228.57,2.186]
[1733932646741,4.18467302,228.58,228.57,2.186]
[1733932647038,4.18467302,228.58,228.56,2.1861]
[1733932647339,4.18467302,228.57,228.56,2.1861]
[1733932648143,4.18666591,228.57,228.49,14.23862983]
[1733932648338,4.18666591,228.56,228.49,14.23862983]
[1733932648542,2.1857,228.61,228.49,14.23862983]
[1733932648740,4.1867776,228.6,228.49,14.23862983]
[1733932648947,4.1867776,228.59,228.49,14.23862983]
[1733932649239,4.1867776,228.58,228.49,14.23862983]
[1733932649446,4.1867776,228.57,228.49,14.23862983]
[1733932649646,4.1867776,228.56,228.49,14.23862983]
[1733932649945,4.1867776,228.55,228.49,14.23862983]
[1733932650146,4.1868756,228.54,228.49,14.23862983]
[1733932650348,4.1868756,228.53,228.49,14.23862983]
[1733932650548,2.62,228.61,228.6,2.1858]
[1733932650741,4.18661205,228.61,228.6,2.1858]
[1733932651346,2.62,228.62,228.6,2.1858]
[1733932651650,4.18580167,228.61,228.6,2.1858]
[1733932652651,4.18580167,228.61,228.52,10.09892983]
[1733932652845,4.18650137,228.6,228.52,10.09892983]
[1733932653149,2.62,228.64,228.49,4.1397]
[1733932653150,4.18650137,228.59,228.49,4.1397]
[1733932653351,4.18650137,228.58,228.49,14.23862983]
[1733932653544,4.18650137,228.57,228.49,14.23862983]
[1733932653742,4.18650137,228.56,228.49,14.23862983]
[1733932653953,4.18650137,228.55,228.49,14.23862983]
[1733932654155,4.18650137,228.54,228.49,14.23862983]
[1733932654353,4.18650137,228.53,228.49,14.23862983]
[1733932654553,4.18650137,228.52,228.49,4.1397]
[1733932654850,4.18650137,228.51,228.49,4.1397]
[1733932655056,2.62,228.58,228.49,6.3265]
[1733932655057,4.18650137,228.5,228.49,6.3265]
[1733932655352,4.806,228.58,228.49,4.1397]
[1733932655353,4.18650137,228.57,228.49,4.1397]
[1733932655547,4.18650137,228.56,228.54,2.1863]
[1733932655850,4.18650137,228.55,228.49,4.1397]
[1733932656046,4.18650137,228.54,228.53,2.1864]
[1733932657852,2.62,228.56,228.52,2.1865]
[1733932658049,4.18663727,228.54,228.49,4.1397]
[1733932658354,4.18663727,228.53,228.5,2.1866]
[1733932658651,4.18663727,228.52,228.49,4.1397]
[1733932658947,4.18663727,228.52,228.42,14.47392983]
[1733932658948,6.37333727,228.51,228.42,10.09892983]
[1733932659151,4.18663727,228.5,228.42,10.09892983]
[1733932659355,2.1867,228.51,228.38,2.62]
[1733932659356,4.18663727,228.49,228.38,2.62]
[1733932659555,4.18663727,228.48,228.44,5.32825831]
[1733932659855,4.18663727,228.47,228.44,5.32825831]
[1733932660056,4.18663727,228.46,228.44,5.32825831]
[1733932660359,4.18663727,228.45,228.44,7.51555831]
[1733932660955,2.62,228.54,228.44,5.32825831]
[1733932661152,4.18190271,228.53,228.51,2.1866]
[1733932661356,4.18190271,228.52,228.51,2.1866]
[1733932664260,2.62,228.56,228.54,2.1863]
[1733932664559,4.18565038,228.55,228.54,2.1863]
[1733932664955,4.18565038,228.55,228.46,2.7152]
[1733932665254,4.18565038,228.54,228.46,2.7152]
[1733932665460,4.18565038,228.53,228.46,2.7152]
[1733932665759,4.18565038,228.52,228.5,2.1867]
[1733932665960,4.18565038,228.51,228.5,2.1867]
[1733932667460,4.18565038,228.51,228.46,2.7152]
[1733932667461,10.09892983,228.59,228.57,2.186]
[1733932667658,1.3138,228.64,228.57,2.186]
[1733932667659,2.62,228.6,228.57,2.186]
[1733932668259,2.62,228.61,228.48,10.09892983]
[1733932668853,2.62,228.61,228.59,2.1858]
[1733932671465,2.62,228.61,228.51,10.09892983]
[1733932671466,2.62,228.61,228.6,2.1858]
[1733932671764,4.8054,228.64,228.6,2.1858]
[1733932672058,2.62,228.64,228.52,2.62]
[1733932672361,2.62,228.64,228.53,5.4665717]
[1733932672960,10.09892983,228.65,228.54,6.8306717]
[1733932673163,10.09892983,228.68,228.56,5.18567024]
[1733932673465,10.09892983,228.68,228.57,5.4665717]
[1733932673663,10.09892983,228.68,228.56,5.18567024]
[1733932673861,2.1852,228.67,228.56,5.18567024]
[1733932674062,2.1852,228.67,228.57,5.46597548]
[1733932674258,2.1852,228.67,228.58,5.46597548]
[1733932674461,2.1852,228.67,228.59,5.46597548]
[1733932674765,2.1852,228.67,228.6,5.46597548]
[1733932674962,2.1852,228.67,228.61,5.46597548]
[1733932675165,2.1852,228.67,228.62,5.46597548]
[1733932675466,2.1852,228.67,228.63,5.46597548]
[1733932675765,2.1852,228.67,228.64,5.46597548]
[1733932675961,2.1852,228.67,228.63,2.1854]
[1733932676264,10.09892983,228.68,228.64,5.46566529]
[1733932676465,10.09892983,228.68,228.56,5.18567024]
[1733932676466,12.42482177,228.67,228.56,5.18567024]
[1733932676767,10.09892983,228.68,228.56,5.18567024]
[1733932676958,14.61002724,228.67,228.62,2.1855]
[1733932677166,12.42482724,228.66,228.57,10.09892983]
[1733932677364,10.09892983,228.73,228.58,8.08597152]
[1733932677564,13.11908964,228.72,228.59,5.46597152]
[1733932677863,10.09892983,228.73,228.6,5.46597152]
[1733932677864,12.42381081,228.71,228.6,5.46597152]
[1733932678055,10.09892983,228.73,228.67,2.1851]
[1733932678056,2.1848,228.7,228.67,2.1851]
[1733932678257,10.09892983,228.73,228.58,2.62]
[1733932678462,12.42087578,228.72,228.6,10.09892983]
[1733932678659,10.09892983,228.73,228.61,5.46521279]
[1733932678862,12.42087594,228.72,228.62,5.46521279]
[1733932679169,10.09892983,228.73,228.67,2.1851]
[1733932679170,2.1848,228.71,228.67,2.1851]
[1733932679361,10.09892983,228.73,228.6,10.09892983]
[1733932679561,12.41826589,228.72,228.61,5.46528965]
[1733932679761,10.09892983,228.73,228.62,5.46528965]
[1733932679963,2.1849,228.7,228.63,2.1854]
[1733932680166,10.09892983,228.73,228.63,5.46527943]
[1733932680466,12.41777054,228.72,228.64,5.46527943]
[1733932680669,2.1848,228.71,228.64,7.65057943]
[1733932680868,10.09892983,228.73,228.65,5.46527943]
[1733932681070,10.09892983,228.7,228.58,2.62]
[1733932681768,2.185,228.68,228.64,2.1853]
[1733932682068,2.185,228.68,228.58,2.62]
[1733932683166,6.46252919,228.67,228.6,6.46252919]
[1733932683363,2.1849,228.69,228.6,6.46252919]
[1733932683565,6.46252919,228.69,228.62,6.46252919]
[1733932683765,6.46252919,228.72,228.64,6.46252919]
[1733932684161,45.7669227,228.76,228.72,2.1845]
[1733932684367,18.87099267,228.75,228.68,6.46252919]
[1733932684563,6.46252919,228.75,228.68,6.46252919]
[1733932684774,6.46252919,228.75,228.71,2.1846]
[1733932684967,6.46252919,228.75,228.68,6.46252919]
[1733932685271,10.09119279,228.77,228.66,2.9048]
[1733932685572,10.09119279,228.74,228.67,5.46379816]
[1733932685766,2.62,228.73,228.67,5.46379816]
[1733932685972,2.62,228.73,228.68,5.46379816]
[1733932685973,2.1847,228.71,228.68,5.46379816]
[1733932686276,10.09119279,228.71,228.59,1.4457]
[1733932686472,10.09119279,228.71,228.6,5.46409836]
[1733932686670,2.185,228.68,228.63,2.1854]
[1733932686875,2.185,228.68,228.64,5.46546894]
[1733932687173,2.1849,228.7,228.65,2.1852]
[1733932687370,10.09119279,228.71,228.61,5.46409836]
[1733932687673,10.09119279,228.71,228.59,1.4457]
[1733932688076,10.09119279,228.71,228.65,5.46505659]
[1733932688677,10.09119279,228.71,228.66,5.46482865]
[1733932688978,10.09119279,228.71,228.59,1.4457]
[1733932689166,10.09119279,228.71,228.6,5.46482865]
[1733932689366,10.09119279,228.71,228.61,5.46482865]
[1733932689571,12.27589279,228.71,228.67,2.1851]
[1733932690469,4.8045,228.73,228.69,2.1849]
[1733932691180,10.09119279,228.71,228.56,5.18567024]
[1733932691370,2.62,228.73,228.57,5.46641417]
[1733932691371,10.09119279,228.65,228.57,5.46641417]
[1733932691575,2.62,228.64,228.51,14.30259279]
[1733932691777,2.62,228.64,228.58,5.46675689]
[1733932692272,10.09119279,228.68,228.54,12.71119279]
[1733932692578,2.62,228.68,228.55,5.46675689]
[1733932692779,2.62,228.68,228.56,5.46675689]
[1733932692978,2.62,228.68,228.57,5.46675689]
[1733932693274,2.62,228.68,228.58,5.46675689]
[1733932693577,2.62,228.68,228.59,5.46675689]
[1733932693779,2.62,228.68,228.6,5.46675689]
[1733932693977,2.62,228.68,228.61,5.46675689]
[1733932694279,12.71119279,228.68,228.54,12.71119279]
[1733932694573,2.1855,228.63,228.57,2.186]
[1733932694778,12.71119279,228.68,228.57,2.186]
[1733932694973,10.09119279,228.65,228.55,5.46652535]
[1733932695180,2.1856,228.62,228.57,2.186]
[1733932696279,2.1857,228.61,228.56,2.1861]
[1733932696578,2.1857,228.61,228.57,5.46697429]
[1733932696777,2.1857,228.61,228.56,2.1861]
[1733932696979,2.1857,228.61,228.57,5.46694849]
[1733932697178,2.1857,228.61,228.56,2.1861]
[1733932697382,2.1857,228.61,228.57,5.46696693]
[1733932697580,2.1857,228.61,228.56,2.1861]
[1733932697781,2.1857,228.61,228.57,5.46694418]
[1733932697976,2.1857,228.61,228.56,2.1861]
[1733932698381,2.1857,228.61,228.57,5.46694672]
[1733932698674,12.71119279,228.62,228.51,4.2114]
[1733932698877,10.09119279,228.59,228.52,5.46730941]
[1733932699077,10.09119279,228.59,228.53,5.46730941]
[1733932699277,10.09119279,228.59,228.47,2.6]
[1733932699278,2.1862,228.56,228.54,5.46730941]
[1733932699486,2.1862,228.56,228.45,15.46819279]
[1733932699684,2.1862,228.56,228.46,5.46826186]
[1733932699883,2.1862,228.56,228.47,5.46826186]
[1733932700086,2.1862,228.56,228.48,5.46826186]
[1733932700384,2.1862,228.56,228.49,5.46826186]
[1733932700582,2.1862,228.56,228.51,2.1865]
[1733932700879,2.1862,228.56,228.52,5.46826186]
[1733932701179,2.1862,228.56,228.52,2.1865]
[1733932701376,10.09119279,228.59,228.52,2.1865]
[1733932701581,2.186,228.58,228.52,2.1865]
[1733932702682,2.1861,228.57,228.52,2.1865]
[1733932705183,6.46880203,228.56,228.53,5.46763646]
[1733932705381,4.25320551,228.55,228.52,2.1865]
[1733932705581,4.25320551,228.54,228.53,5.46763764]
[1733932707382,4.25320551,228.54,228.52,2.1865]
[1733932707688,4.25320551,228.53,228.52,2.1865]
[1733932708282,4.25320551,228.53,228.47,6.46880203]
[1733932708483,4.25320551,228.52,228.47,6.46880203]
[1733932708782,4.25320551,228.51,228.47,6.46880203]
[1733932708985,4.25320551,228.5,228.47,6.46880203]
[1733932709181,4.25320551,228.49,228.47,6.46880203]
[1733932709383,4.25320551,228.48,228.47,6.46880203]
[1733932709582,4.25320551,228.48,228.47,8.65580203]
[1733932709885,4.25320551,228.48,228.47,2.187]
[1733932710087,4.25320551,228.48,228.47,8.65580203]
[1733932710880,2.1864,228.54,228.5,2.1867]
[1733932711085,4.25113024,228.53,228.49,6.46880203]
[1733932711284,4.25113024,228.52,228.49,6.46880203]
[1733932711484,4.25113024,228.51,228.5,2.1867]
[1733932712484,2.1861,228.57,228.49,6.46880203]
[1733932712685,6.46880203,228.58,228.54,2.1863]
[1733932713086,2.1861,228.57,228.53,2.1864]
[1733932713483,6.46880203,228.56,228.49,6.46880203]
[1733932713684,6.46880203,228.54,228.45,4.1725]
[1733932713882,6.46880203,228.54,228.46,6.46880203]
[1733932714190,8.65510203,228.54,228.5,2.1867]
[1733932714393,6.46880203,228.54,228.5,2.1867]
[1733932714780,2.6,228.6,228.51,6.46880203]
[1733932715090,5.28970149,228.69,228.51,6.46880203]
[1733932715287,2.1853,228.65,228.61,2.1856]
[1733932715484,6.46880203,228.66,228.59,6.46880203]
[1733932716390,6.46880203,228.66,228.61,2.1856]
[1733932716781,8.65400203,228.66,228.61,2.1856]
[1733932716983,6.46880203,228.64,228.61,2.1856]
[1733932717185,6.46880203,228.62,228.59,2.1858]
[1733932717393,6.46880203,228.62,228.56,7.88220203]
[1733932717586,6.46880203,228.62,228.57,5.46532709]
[1733932717788,6.46880203,228.62,228.58,5.46532709]
[1733932718087,6.46880203,228.6,228.59,5.46532709]
[1733932718390,6.46880203,228.6,228.53,6.46880203]
[1733932718591,6.46880203,228.6,228.56,2.1861]
[1733932718787,6.46880203,228.6,228.57,5.46621778]
[1733932719085,6.46880203,228.6,228.56,2.1861]
[1733932719288,8.65460203,228.6,228.57,5.46648225]
[1733932719484,8.65460203,228.6,228.56,2.1861]
[1733932719684,2.458,228.72,228.46,1.3877]
[1733932719685,6.46880203,228.58,228.46,1.3877]
[1733932719890,2.1862,228.56,228.5,6.46880203]
[1733932720087,6.46880203,228.56,228.51,5.46748487]
[1733932720284,6.46880203,228.56,228.52,5.46748487]
[1733932720588,2.1862,228.55,228.53,5.46748487]
[1733932720788,6.46880203,228.56,228.47,6.46880203]
[1733932720992,6.46880203,228.54,228.48,5.46772118]
[1733932721290,6.46880203,228.54,228.49,5.46772118]
[1733932721291,2.1866,228.52,228.49,5.46772118]
[1733932721593,2.1866,228.52,228.5,5.46772118]
[1733932721789,2.1866,228.52,228.51,5.46772118]
[1733932722688,4.7866,228.52,228.51,5.46772118]
[1733932723490,4.7866,228.52,228.48,2.1868]
[1733932724193,4.7866,228.52,228.49,5.46849582]
[1733932724394,4.7866,228.52,228.48,2.1868]
[1733932724593,4.7866,228.52,228.49,5.4683919]
[1733932724893,4.7866,228.52,228.48,2.1868]
[1733932725092,4.7866,228.52,228.49,5.46846504]
[1733932725392,4.7866,228.52,228.48,2.1868]
[1733932725687,4.7866,228.52,228.49,5.46844288]
[1733932725887,2.6,228.52,228.49,2.1868]
[1733932726993,4.7863,228.52,228.48,2.1867]
[1733932727587,2.1864,228.51,228.47,2.1868]
[1733932727787,2.6,228.52,228.47,2.1868]
[1733932728193,4.7863,228.52,228.47,2.1868]
[1733932728794,2.6,228.51,228.47,2.1868]
[1733932730396,2.6,228.51,228.48,2.1867]
[1733932732690,2.6,228.54,228.45,10.11036868]
[1733932732996,10.11036868,228.6,228.45,11.43396868]